[Event "*** SCC Grand Prix: Titled Tuesday Blitz"]
[Site "Chess.com"]
[Date "2020.08.11"]
[Round "7"]
[White "Evgeny81"]
[Black "ChessBitl"]
[Result "0-1"]
[WhiteElo "2689"]
[BlackElo "2443"]
[TimeControl "180+1"]
[EndTime "11:17:57 PDT"]
[Termination "ChessBitl won by resignation"]

1. d4 {[%clk 0:03:00.9]} 1... Nf6 {[%clk 0:02:55.7]} 2. Nf3 {[%clk 0:03:01.2]}
2... g6 {[%clk 0:02:56]} 3. Bg5 {[%clk 0:03:01]} 3... Bg7 {[%clk 0:02:56.1]} 4.
Nbd2 {[%clk 0:03:01.2]} 4... O-O {[%clk 0:02:56.5]} 5. e3 {[%clk 0:03:01.5]}
5... d6 {[%clk 0:02:56.8]} 6. Be2 {[%clk 0:03:01]} 6... c5 {[%clk 0:02:57.1]} 7.
O-O {[%clk 0:03:00.7]} 7... Nc6 {[%clk 0:02:56.1]} 8. c3 {[%clk 0:03:00]} 8...
Be6 {[%clk 0:02:20.9]} 9. h3 {[%clk 0:02:53.5]} 9... cxd4 {[%clk 0:02:15.9]} 10.
exd4 {[%clk 0:02:52.2]} 10... Rc8 {[%clk 0:02:15.8]} 11. Re1 {[%clk 0:02:50.7]}
11... Qb6 {[%clk 0:02:11.8]} 12. Bc4 {[%clk 0:02:43.1]} 12... Nxd4 {[%clk
0:02:01.5]} 13. Nxd4 {[%clk 0:02:32.6]} 13... Bxc4 {[%clk 0:02:00.7]} 14. Nxc4
{[%clk 0:02:32.6]} 14... Rxc4 {[%clk 0:02:00.2]} 15. Qb3 {[%clk 0:02:29.7]}
15... Rc7 {[%clk 0:01:55.2]} 16. Qxb6 {[%clk 0:02:26.6]} 16... axb6 {[%clk
0:01:55.7]} 17. Rad1 {[%clk 0:02:26]} 17... e6 {[%clk 0:01:51]} 18. Bxf6 {[%clk
0:02:17.2]} 18... Bxf6 {[%clk 0:01:50.4]} 19. Nb5 {[%clk 0:02:17.4]} 19... Rd7
{[%clk 0:01:46.3]} 20. Rxd6 {[%clk 0:02:15.7]} 20... Rxd6 {[%clk 0:01:46.1]} 21.
Nxd6 {[%clk 0:02:16.6]} 21... Rd8 {[%clk 0:01:39]} 22. Ne4 {[%clk 0:02:10.5]}
22... Be7 {[%clk 0:01:39]} 23. Kf1 {[%clk 0:02:10.2]} 23... f5 {[%clk
0:01:34.3]} 24. Ng3 {[%clk 0:02:09.1]} 24... Kf7 {[%clk 0:01:34.4]} 25. Ke2
{[%clk 0:02:07]} 25... b5 {[%clk 0:01:31.8]} 26. a3 {[%clk 0:02:06]} 26... h5
{[%clk 0:01:29]} 27. Nf1 {[%clk 0:02:03.8]} 27... e5 {[%clk 0:01:28.8]} 28. Ne3
{[%clk 0:02:01.1]} 28... Ke6 {[%clk 0:01:24.7]} 29. Rd1 {[%clk 0:01:57.1]} 29...
Rxd1 {[%clk 0:01:20.4]} 30. Kxd1 {[%clk 0:01:57.3]} 30... e4 {[%clk 0:01:21.3]}
31. Nc2 {[%clk 0:01:52.8]} 31... Bc5 {[%clk 0:01:17]} 32. Ke2 {[%clk 0:01:52.8]}
32... Kd5 {[%clk 0:01:14.3]} 33. b3 {[%clk 0:01:49.9]} 33... h4 {[%clk
0:01:10.8]} 34. f3 {[%clk 0:01:48.6]} 34... Bb6 {[%clk 0:01:07.7]} 35. Nb4+
{[%clk 0:01:37.9]} 35... Ke5 {[%clk 0:01:03.6]} 36. fxe4 {[%clk 0:01:38]} 36...
Kxe4 {[%clk 0:00:59.8]} 37. Nd3 {[%clk 0:01:36.4]} 37... g5 {[%clk 0:00:56.8]}
38. Ne1 {[%clk 0:01:18.5]} 38... g4 {[%clk 0:00:55.2]} 39. Nd3 {[%clk
0:01:15.1]} 39... Be3 {[%clk 0:00:51.4]} 40. Ne1 {[%clk 0:01:06.9]} 40... Bf4
{[%clk 0:00:48.5]} 41. Nc2 {[%clk 0:01:02.4]} 41... Be5 {[%clk 0:00:45.7]} 42.
c4 {[%clk 0:01:00.7]} 42... bxc4 {[%clk 0:00:42.3]} 43. bxc4 {[%clk 0:01:01.6]}
43... Bd4 {[%clk 0:00:42.7]} 44. a4 {[%clk 0:00:57.6]} 44... Ba7 {[%clk
0:00:40.1]} 45. a5 {[%clk 0:00:47.2]} 45... Kf4 {[%clk 0:00:37.8]} 46. hxg4
{[%clk 0:00:36.7]} 46... fxg4 {[%clk 0:00:37.4]} 47. Kf1 {[%clk 0:00:32.2]}
47... Kg3 {[%clk 0:00:37.5]} 48. c5 {[%clk 0:00:15.2]} 48... Bxc5 {[%clk
0:00:32.8]} 49. Ne1 {[%clk 0:00:14.9]} 49... h3 {[%clk 0:00:28.6]} 50. gxh3
{[%clk 0:00:14.7]} 50... gxh3 {[%clk 0:00:29]} 0-1

[Event "*** SCC Grand Prix: Titled Tuesday Blitz"]
[Site "Chess.com"]
[Date "2020.08.11"]
[Round "7"]
[White "chegueps"]
[Black "PavelShkapenko"]
[Result "0-1"]
[WhiteElo "2472"]
[BlackElo "2665"]
[TimeControl "180+1"]
[EndTime "11:17:58 PDT"]
[Termination "PavelShkapenko won on time"]

1. e4 {[%clk 0:02:58.9]} 1... c5 {[%clk 0:02:59.4]} 2. Nf3 {[%clk 0:02:58.8]}
2... e6 {[%clk 0:02:56.4]} 3. c3 {[%clk 0:02:57.9]} 3... d5 {[%clk 0:02:52.6]}
4. exd5 {[%clk 0:02:57.3]} 4... exd5 {[%clk 0:02:51.7]} 5. d4 {[%clk 0:02:57.7]}
5... Nc6 {[%clk 0:02:49.5]} 6. Be2 {[%clk 0:02:53.5]} 6... Bd6 {[%clk
0:02:46.3]} 7. O-O {[%clk 0:02:53.2]} 7... Nge7 {[%clk 0:02:45.6]} 8. Be3 {[%clk
0:02:46.4]} 8... c4 {[%clk 0:02:45]} 9. b3 {[%clk 0:02:35.4]} 9... cxb3 {[%clk
0:02:44.8]} 10. axb3 {[%clk 0:02:36.3]} 10... O-O {[%clk 0:02:44.9]} 11. Qd2
{[%clk 0:02:31.4]} 11... Bf5 {[%clk 0:02:43.5]} 12. Bf4 {[%clk 0:02:30.4]} 12...
Ng6 {[%clk 0:02:42.5]} 13. Bg3 {[%clk 0:02:17.4]} 13... Re8 {[%clk 0:02:34.4]}
14. Na3 {[%clk 0:02:12.3]} 14... a6 {[%clk 0:02:29.3]} 15. Nc2 {[%clk
0:02:06.2]} 15... Qc7 {[%clk 0:02:25.1]} 16. Ne3 {[%clk 0:02:01.9]} 16... Be4
{[%clk 0:02:25.5]} 17. Ng5 {[%clk 0:01:58.9]} 17... Nf4 {[%clk 0:02:03.6]} 18.
Nxe4 {[%clk 0:01:50.5]} 18... dxe4 {[%clk 0:01:59.6]} 19. Bxf4 {[%clk
0:01:48.6]} 19... Bxf4 {[%clk 0:01:59.2]} 20. Nd5 {[%clk 0:01:48.8]} 20... Bxh2+
{[%clk 0:01:56.8]} 21. Kh1 {[%clk 0:01:47.6]} 21... Qd6 {[%clk 0:01:57.4]} 22.
Nb6 {[%clk 0:01:36.5]} 22... Rad8 {[%clk 0:01:51.1]} 23. Nc4 {[%clk 0:01:13.2]}
23... Qf4 {[%clk 0:01:49.2]} 24. g3 {[%clk 0:01:04.8]} 24... Qxd2 {[%clk
0:01:49.3]} 25. Nxd2 {[%clk 0:01:05.7]} 25... e3 {[%clk 0:01:49.9]} 26. Kxh2
{[%clk 0:00:52.2]} 26... exd2 {[%clk 0:01:49.7]} 27. Bf3 {[%clk 0:00:51.3]}
27... Rd6 {[%clk 0:01:28.7]} 28. Rfd1 {[%clk 0:00:45.9]} 28... a5 {[%clk
0:01:08.5]} 29. Rxd2 {[%clk 0:00:43.2]} 29... b6 {[%clk 0:01:08.8]} 30. Kg2
{[%clk 0:00:34.6]} 30... g6 {[%clk 0:01:06.7]} 31. Re2 {[%clk 0:00:30.9]} 31...
Rxe2 {[%clk 0:01:04.1]} 32. Bxe2 {[%clk 0:00:31.8]} 32... Ne7 {[%clk 0:01:03.2]}
33. Bf3 {[%clk 0:00:12.1]} 33... Rd7 {[%clk 0:00:55.5]} 34. Re1 {[%clk
0:00:11.4]} 34... Kg7 {[%clk 0:00:54.4]} 35. Re5 {[%clk 0:00:11.4]} 35... Rc7
{[%clk 0:00:53.9]} 36. c4 {[%clk 0:00:10.7]} 36... Nf5 {[%clk 0:00:54.3]} 37.
Rd5 {[%clk 0:00:04.1]} 37... a4 {[%clk 0:00:51.3]} 38. bxa4 {[%clk 0:00:02.4]}
38... Rxc4 {[%clk 0:00:51.8]} 39. Rd7 {[%clk 0:00:03]} 39... Rxd4 {[%clk
0:00:37.2]} 40. Rb7 {[%clk 0:00:02.7]} 40... Rxa4 {[%clk 0:00:34.6]} 41. Bd5
{[%clk 0:00:01.3]} 41... Nh6 {[%clk 0:00:13.8]} 42. Rxb6 {[%clk 0:00:01.4]}
42... Ra7 {[%clk 0:00:13.9]} 0-1

[Event "*** SCC Grand Prix: Titled Tuesday Blitz"]
[Site "Chess.com"]
[Date "2020.08.11"]
[Round "7"]
[White "GMHess"]
[Black "Angel_Hranitel_37"]
[Result "1-0"]
[WhiteElo "2795"]
[BlackElo "2445"]
[TimeControl "180+1"]
[EndTime "11:18:00 PDT"]
[Termination "GMHess won on time"]

1. d4 {[%clk 0:03:00.9]} 1... Nf6 {[%clk 0:03:00]} 2. c4 {[%clk 0:02:59.7]} 2...
g6 {[%clk 0:03:00]} 3. Nc3 {[%clk 0:03:00.1]} 3... Bg7 {[%clk 0:03:00.1]} 4. e4
{[%clk 0:03:00.5]} 4... d6 {[%clk 0:03:00.5]} 5. f3 {[%clk 0:03:00.8]} 5... O-O
{[%clk 0:03:00.4]} 6. Be3 {[%clk 0:03:01.4]} 6... Nc6 {[%clk 0:03:01]} 7. Nge2
{[%clk 0:03:01.9]} 7... a6 {[%clk 0:03:00.8]} 8. Qd2 {[%clk 0:03:01.9]} 8... Na5
{[%clk 0:03:01.4]} 9. Nc1 {[%clk 0:03:01.8]} 9... Nd7 {[%clk 0:03:00.3]} 10. Nb3
{[%clk 0:02:56.6]} 10... c6 {[%clk 0:03:00.5]} 11. Be2 {[%clk 0:02:49.1]} 11...
Nxb3 {[%clk 0:03:00.4]} 12. axb3 {[%clk 0:02:49.1]} 12... e5 {[%clk 0:03:00.8]}
13. dxe5 {[%clk 0:02:43.3]} 13... dxe5 {[%clk 0:02:56.2]} 14. O-O {[%clk
0:02:38.8]} 14... Qc7 {[%clk 0:02:56.6]} 15. Rfd1 {[%clk 0:02:38.2]} 15... Re8
{[%clk 0:02:51.5]} 16. c5 {[%clk 0:02:24.9]} 16... Nf8 {[%clk 0:02:51.4]} 17.
Qd6 {[%clk 0:02:18.3]} 17... Ne6 {[%clk 0:02:51]} 18. Na4 {[%clk 0:02:13.5]}
18... Qxd6 {[%clk 0:01:58.6]} 19. Rxd6 {[%clk 0:02:00.1]} 19... Bf8 {[%clk
0:01:56.5]} 20. Nb6 {[%clk 0:01:56.7]} 20... Rb8 {[%clk 0:01:50.1]} 21. Rad1
{[%clk 0:01:48.8]} 21... Nd4 {[%clk 0:01:11]} 22. Bc4 {[%clk 0:01:08.5]} 22...
Bxd6 {[%clk 0:01:02.9]} 23. cxd6 {[%clk 0:01:09.4]} 23... Rd8 {[%clk 0:01:02.9]}
24. Bxd4 {[%clk 0:00:45.1]} 24... Rxd6 {[%clk 0:00:47.9]} 25. Bxe5 {[%clk
0:00:34.4]} 25... Rxd1+ {[%clk 0:00:48.8]} 26. Kf2 {[%clk 0:00:33.9]} 26... Be6
{[%clk 0:00:33.1]} 27. Bxb8 {[%clk 0:00:33.1]} 27... Rd2+ {[%clk 0:00:33.3]} 28.
Ke3 {[%clk 0:00:23.6]} 28... Rxb2 {[%clk 0:00:33.4]} 29. Be5 {[%clk 0:00:22.9]}
29... Rxg2 {[%clk 0:00:31.9]} 30. Bxe6 {[%clk 0:00:21.5]} 30... fxe6 {[%clk
0:00:32.8]} 31. Nc4 {[%clk 0:00:16.3]} 31... b5 {[%clk 0:00:28.6]} 32. Na5
{[%clk 0:00:13.9]} 32... c5 {[%clk 0:00:28.3]} 33. Nb7 {[%clk 0:00:14.4]} 33...
c4 {[%clk 0:00:18.1]} 34. bxc4 {[%clk 0:00:15.3]} 34... bxc4 {[%clk 0:00:19]}
35. Nc5 {[%clk 0:00:14.4]} 35... Kf7 {[%clk 0:00:12.9]} 36. Nxa6 {[%clk
0:00:14]} 36... c3 {[%clk 0:00:13.5]} 37. Nb4 {[%clk 0:00:11.5]} 37... c2 {[%clk
0:00:13.1]} 38. Nd3 {[%clk 0:00:11.2]} 38... h5 {[%clk 0:00:04]} 39. h4 {[%clk
0:00:08.2]} 39... Ke7 {[%clk 0:00:02]} 40. Bf4 {[%clk 0:00:07.6]} 40... Kd7
{[%clk 0:00:01.3]} 41. Kd4 {[%clk 0:00:07.6]} 1-0

[Event "*** SCC Grand Prix: Titled Tuesday Blitz"]
[Site "Chess.com"]
[Date "2020.08.11"]
[Round "7"]
[White "BeanScreen"]
[Black "AldokhinIvan"]
[Result "1/2-1/2"]
[WhiteElo "2704"]
[BlackElo "2541"]
[TimeControl "180+1"]
[EndTime "11:18:01 PDT"]
[Termination "Game drawn - insufficient material"]

1. e4 {[%clk 0:03:00.5]} 1... c5 {[%clk 0:02:58.1]} 2. Nf3 {[%clk 0:03:00.9]}
2... e6 {[%clk 0:02:58.4]} 3. d4 {[%clk 0:03:01.4]} 3... cxd4 {[%clk 0:02:58]}
4. Nxd4 {[%clk 0:03:01.9]} 4... a6 {[%clk 0:02:57.7]} 5. Bd3 {[%clk 0:03:01.9]}
5... Qc7 {[%clk 0:02:57.9]} 6. O-O {[%clk 0:03:01.9]} 6... Nf6 {[%clk
0:02:58.2]} 7. Nc3 {[%clk 0:03:02.1]} 7... d6 {[%clk 0:02:56.1]} 8. f4 {[%clk
0:03:01.6]} 8... Be7 {[%clk 0:02:54.9]} 9. Be3 {[%clk 0:03:01.9]} 9... Nc6
{[%clk 0:02:52]} 10. a4 {[%clk 0:02:58.5]} 10... O-O {[%clk 0:02:50]} 11. g4
{[%clk 0:02:58.6]} 11... Nxd4 {[%clk 0:02:36]} 12. Bxd4 {[%clk 0:02:59.5]} 12...
e5 {[%clk 0:02:23.9]} 13. g5 {[%clk 0:02:47.3]} 13... exd4 {[%clk 0:02:19.3]}
14. gxf6 {[%clk 0:02:47.3]} 14... dxc3 {[%clk 0:02:19.1]} 15. fxe7 {[%clk
0:02:47.6]} 15... Qxe7 {[%clk 0:02:08.3]} 16. bxc3 {[%clk 0:02:46.5]} 16... Bh3
{[%clk 0:02:07.5]} 17. Re1 {[%clk 0:02:40.8]} 17... Rac8 {[%clk 0:01:46]} 18.
Qf3 {[%clk 0:02:40.2]} 18... Bd7 {[%clk 0:01:39.9]} 19. e5 {[%clk 0:02:28.2]}
19... dxe5 {[%clk 0:01:33.7]} 20. Rxe5 {[%clk 0:02:29.1]} 20... Qf6 {[%clk
0:01:29.2]} 21. Rae1 {[%clk 0:02:16.5]} 21... h6 {[%clk 0:01:27.4]} 22. R1e3
{[%clk 0:01:48.1]} 22... Kh8 {[%clk 0:01:17.5]} 23. Rh5 {[%clk 0:01:35.7]} 23...
Rfe8 {[%clk 0:01:08.5]} 24. Rhe5 {[%clk 0:01:30.1]} 24... Rxe5 {[%clk
0:01:05.1]} 25. Rxe5 {[%clk 0:01:31]} 25... Qb6+ {[%clk 0:00:58.6]} 26. Qe3
{[%clk 0:01:27.6]} 26... Qxe3+ {[%clk 0:00:54.9]} 27. Rxe3 {[%clk 0:01:28.5]}
27... Kg8 {[%clk 0:00:49.7]} 28. Re7 {[%clk 0:01:27.9]} 28... Bxa4 {[%clk
0:00:28.9]} 29. Rxb7 {[%clk 0:01:27.1]} 29... Bb5 {[%clk 0:00:25.9]} 30. Bxb5
{[%clk 0:01:24.7]} 30... axb5 {[%clk 0:00:26.8]} 31. Rxb5 {[%clk 0:01:23.1]}
31... Rxc3 {[%clk 0:00:27.3]} 32. Rb8+ {[%clk 0:01:14.7]} 32... Kh7 {[%clk
0:00:27.2]} 33. Rb2 {[%clk 0:01:15.6]} 33... Kg6 {[%clk 0:00:27.1]} 34. Kf2
{[%clk 0:01:09.8]} 34... Kf5 {[%clk 0:00:26.2]} 35. Ke2 {[%clk 0:01:08.7]} 35...
Kxf4 {[%clk 0:00:26]} 36. Kd2 {[%clk 0:01:09.3]} 36... Rh3 {[%clk 0:00:24.9]}
37. Rb7 {[%clk 0:01:09.5]} 37... Rxh2+ {[%clk 0:00:25.5]} 38. Kd3 {[%clk
0:01:08.6]} 38... g5 {[%clk 0:00:23.2]} 39. Rxf7+ {[%clk 0:01:08.6]} 39... Ke5
{[%clk 0:00:20.1]} 40. c4 {[%clk 0:01:07.5]} 40... g4 {[%clk 0:00:18]} 41. c5
{[%clk 0:01:04.2]} 41... Kd5 {[%clk 0:00:18.2]} 42. Rf5+ {[%clk 0:01:04]} 42...
Kc6 {[%clk 0:00:16.3]} 43. Ke3 {[%clk 0:01:03.4]} 43... h5 {[%clk 0:00:16.5]}
44. Rg5 {[%clk 0:01:01]} 44... Rh3+ {[%clk 0:00:15.5]} 45. Kf4 {[%clk
0:00:57.6]} 45... Rf3+ {[%clk 0:00:15.2]} 46. Ke4 {[%clk 0:00:58.2]} 46... Rh3
{[%clk 0:00:15.4]} 47. Kf4 {[%clk 0:00:58.7]} 47... Rh1 {[%clk 0:00:16]} 48. Kg3
{[%clk 0:00:55.9]} 48... Rg1+ {[%clk 0:00:15.8]} 49. Kh2 {[%clk 0:00:55.5]}
49... Rc1 {[%clk 0:00:12.9]} 50. Rxh5 {[%clk 0:00:55.9]} 50... Rxc5 {[%clk
0:00:13.8]} 51. Rh6+ {[%clk 0:00:55.9]} 51... Kd5 {[%clk 0:00:13.6]} 52. Kg3
{[%clk 0:00:56.2]} 52... Rc4 {[%clk 0:00:12.8]} 53. Rh5+ {[%clk 0:00:56.4]}
53... Ke6 {[%clk 0:00:13]} 54. Rg5 {[%clk 0:00:56.7]} 54... Kf6 {[%clk
0:00:12.9]} 55. Rxg4 {[%clk 0:00:57.3]} 55... Rxg4+ {[%clk 0:00:13]} 56. Kxg4
{[%clk 0:00:58.2]} 1/2-1/2

[Event "*** SCC Grand Prix: Titled Tuesday Blitz"]
[Site "Chess.com"]
[Date "2020.08.11"]
[Round "7"]
[White "Andrii_Prydun"]
[Black "ChessicallyInclined"]
[Result "1-0"]
[WhiteElo "2363"]
[BlackElo "2482"]
[TimeControl "180+1"]
[EndTime "11:18:01 PDT"]
[Termination "Andrii_Prydun won by checkmate"]

1. d4 {[%clk 0:03:00.9]} 1... Nf6 {[%clk 0:02:59.9]} 2. Nc3 {[%clk 0:02:59.8]}
2... d5 {[%clk 0:02:56.9]} 3. Bf4 {[%clk 0:02:59.3]} 3... a6 {[%clk 0:02:53.9]}
4. a3 {[%clk 0:02:59]} 4... e6 {[%clk 0:02:52]} 5. Qd3 {[%clk 0:02:56.2]} 5...
c5 {[%clk 0:02:51.9]} 6. Nf3 {[%clk 0:02:37.3]} 6... Nc6 {[%clk 0:02:47.3]} 7.
e3 {[%clk 0:01:55.9]} 7... c4 {[%clk 0:02:44.3]} 8. Qe2 {[%clk 0:01:53.4]} 8...
Be7 {[%clk 0:02:41.8]} 9. e4 {[%clk 0:01:51.2]} 9... b5 {[%clk 0:02:39]} 10.
exd5 {[%clk 0:01:48.4]} 10... Nxd5 {[%clk 0:02:32.1]} 11. Nxd5 {[%clk
0:01:43.3]} 11... exd5 {[%clk 0:02:33]} 12. Qd2 {[%clk 0:01:16.3]} 12... O-O
{[%clk 0:02:27]} 13. Be2 {[%clk 0:01:15.6]} 13... Bf5 {[%clk 0:02:20.1]} 14. O-O
{[%clk 0:01:14.3]} 14... Qd7 {[%clk 0:02:18]} 15. Rfe1 {[%clk 0:01:12.6]} 15...
h6 {[%clk 0:02:12.2]} 16. Rad1 {[%clk 0:01:10.9]} 16... a5 {[%clk 0:02:10.4]}
17. Ne5 {[%clk 0:01:08.5]} 17... Nxe5 {[%clk 0:02:08.6]} 18. dxe5 {[%clk
0:01:08.1]} 18... Be6 {[%clk 0:02:08.5]} 19. Be3 {[%clk 0:00:59.5]} 19... Qc6
{[%clk 0:02:00.7]} 20. Qd4 {[%clk 0:00:56.5]} 20... Rfd8 {[%clk 0:01:58.4]} 21.
f4 {[%clk 0:00:55.7]} 21... b4 {[%clk 0:01:54.5]} 22. axb4 {[%clk 0:00:54.7]}
22... axb4 {[%clk 0:01:55.4]} 23. Bf3 {[%clk 0:00:54]} 23... Ra5 {[%clk
0:01:23.7]} 24. Kh1 {[%clk 0:00:53.1]} 24... Bf5 {[%clk 0:01:15.5]} 25. Rd2
{[%clk 0:00:50.9]} 25... c3 {[%clk 0:01:12.8]} 26. bxc3 {[%clk 0:00:44]} 26...
bxc3 {[%clk 0:01:13.7]} 27. Rf2 {[%clk 0:00:43.9]} 27... Ra4 {[%clk 0:01:09.6]}
28. Qd1 {[%clk 0:00:39.9]} 28... Be4 {[%clk 0:01:04.9]} 29. Bd4 {[%clk
0:00:32.8]} 29... Qc4 {[%clk 0:00:45.9]} 30. Bb6 {[%clk 0:00:31.2]} 30... Rb8
{[%clk 0:00:43.6]} 31. Bxe4 {[%clk 0:00:30.6]} 31... dxe4 {[%clk 0:00:42.5]} 32.
Qd7 {[%clk 0:00:28.9]} 32... Rxb6 {[%clk 0:00:34.9]} 33. Qxe7 {[%clk 0:00:28.5]}
33... e3 {[%clk 0:00:32.6]} 34. Rf3 {[%clk 0:00:27]} 34... Qe2 {[%clk
0:00:24.6]} 35. Qd8+ {[%clk 0:00:22.1]} 35... Kh7 {[%clk 0:00:24]} 36. Rff1
{[%clk 0:00:20.9]} 36... Qxc2 {[%clk 0:00:20.6]} 37. Qxb6 {[%clk 0:00:19.9]}
37... Ra2 {[%clk 0:00:16.7]} 38. Rg1 {[%clk 0:00:19.3]} 38... e2 {[%clk
0:00:14.9]} 39. Qe3 {[%clk 0:00:19.2]} 39... Qd2 {[%clk 0:00:12.8]} 40. Qe4+
{[%clk 0:00:12.6]} 40... Kh8 {[%clk 0:00:12.9]} 41. h3 {[%clk 0:00:10]} 41...
Rb2 {[%clk 0:00:12.8]} 42. Ra1 {[%clk 0:00:09.5]} 42... g6 {[%clk 0:00:07.3]}
43. e6 {[%clk 0:00:09.8]} 43... fxe6 {[%clk 0:00:06.3]} 44. Qe5+ {[%clk
0:00:09.7]} 44... Kg8 {[%clk 0:00:06]} 45. Ra8+ {[%clk 0:00:09.7]} 45... Kf7
{[%clk 0:00:06]} 46. Qc7+ {[%clk 0:00:09.6]} 46... Kf6 {[%clk 0:00:04.5]} 47.
Rf8# {[%clk 0:00:09.9]} 1-0

[Event "*** SCC Grand Prix: Titled Tuesday Blitz"]
[Site "Chess.com"]
[Date "2020.08.11"]
[Round "7"]
[White "vesalhamedinia"]
[Black "igorknyazev"]
[Result "1-0"]
[WhiteElo "2282"]
[BlackElo "1949"]
[TimeControl "180+1"]
[EndTime "11:18:01 PDT"]
[Termination "vesalhamedinia won by resignation"]

1. d4 {[%clk 0:02:06.2]} 1... Nf6 {[%clk 0:02:57.9]} 2. c4 {[%clk 0:02:04.6]}
2... c5 {[%clk 0:02:58.2]} 3. d5 {[%clk 0:02:01.8]} 3... b5 {[%clk 0:02:58.5]}
4. cxb5 {[%clk 0:02:00.2]} 4... a6 {[%clk 0:02:58.8]} 5. b6 {[%clk 0:02:00.8]}
5... d6 {[%clk 0:02:58]} 6. Nc3 {[%clk 0:02:01.3]} 6... Nbd7 {[%clk 0:02:57.1]}
7. e4 {[%clk 0:02:01.4]} 7... g6 {[%clk 0:02:55.8]} 8. Nf3 {[%clk 0:01:58.7]}
8... Bg7 {[%clk 0:02:55.6]} 9. Be2 {[%clk 0:01:56.8]} 9... O-O {[%clk
0:02:55.6]} 10. O-O {[%clk 0:01:49.6]} 10... Ng4 {[%clk 0:02:50.9]} 11. h3
{[%clk 0:01:48.3]} 11... Nge5 {[%clk 0:02:49.6]} 12. Nd2 {[%clk 0:01:44.9]}
12... Nxb6 {[%clk 0:02:43]} 13. a4 {[%clk 0:01:42]} 13... f5 {[%clk 0:02:38.4]}
14. f4 {[%clk 0:01:37.8]} 14... Nf7 {[%clk 0:02:33.7]} 15. a5 {[%clk 0:01:35.3]}
15... Bd4+ {[%clk 0:02:21.3]} 16. Kh1 {[%clk 0:01:33.5]} 16... Nd7 {[%clk
0:02:05.7]} 17. exf5 {[%clk 0:01:29]} 17... gxf5 {[%clk 0:02:05.2]} 18. Bd3
{[%clk 0:01:22]} 18... Nf6 {[%clk 0:02:01.2]} 19. Nf3 {[%clk 0:01:01.5]} 19...
Kh8 {[%clk 0:01:54.6]} 20. Nxd4 {[%clk 0:00:53.7]} 20... cxd4 {[%clk 0:01:54.4]}
21. Ne2 {[%clk 0:00:53.8]} 21... Nh5 {[%clk 0:01:49.6]} 22. Kh2 {[%clk
0:00:49.5]} 22... Rg8 {[%clk 0:01:41.9]} 23. Nxd4 {[%clk 0:00:44.1]} 23... Ng3
{[%clk 0:01:41.2]} 24. Rf3 {[%clk 0:00:41.3]} 24... Qf8 {[%clk 0:01:29.8]} 25.
Be3 {[%clk 0:00:28.8]} 25... Qg7 {[%clk 0:01:19.6]} 26. Nc6 {[%clk 0:00:19.8]}
26... Ne4 {[%clk 0:00:45.2]} 27. Bd4 {[%clk 0:00:19.3]} 27... Nf6 {[%clk
0:00:44.6]} 28. Qf1 {[%clk 0:00:15.9]} 28... Re8 {[%clk 0:00:39.8]} 29. Rg3
{[%clk 0:00:15]} 29... Qh6 {[%clk 0:00:36.6]} 30. Qf3 {[%clk 0:00:12.8]} 30...
Bd7 {[%clk 0:00:35.8]} 31. Re1 {[%clk 0:00:11.4]} 31... Bxc6 {[%clk 0:00:33.4]}
32. dxc6 {[%clk 0:00:12.3]} 32... e5 {[%clk 0:00:31.3]} 33. fxe5 {[%clk
0:00:11.4]} 33... dxe5 {[%clk 0:00:29.5]} 34. Bc3 {[%clk 0:00:07.6]} 34... e4
{[%clk 0:00:25.2]} 35. Bxe4 {[%clk 0:00:07.7]} 35... Ng5 {[%clk 0:00:17.9]} 36.
Qxf5 {[%clk 0:00:06.3]} 36... Nxe4 {[%clk 0:00:14.7]} 37. Rxe4 {[%clk 0:00:07]}
37... Rf8 {[%clk 0:00:12]} 38. Re6 {[%clk 0:00:06.6]} 38... Rf7 {[%clk
0:00:07.4]} 39. Rxf6 {[%clk 0:00:06.5]} 39... Rxf6 {[%clk 0:00:06.3]} 40. Bxf6+
{[%clk 0:00:07.4]} 1-0

[Event "*** SCC Grand Prix: Titled Tuesday Blitz"]
[Site "Chess.com"]
[Date "2020.08.11"]
[Round "7"]
[White "GMBenjaminBok"]
[Black "Vuk2000"]
[Result "1-0"]
[WhiteElo "2911"]
[BlackElo "2728"]
[TimeControl "180+1"]
[EndTime "11:18:03 PDT"]
[Termination "GMBenjaminBok won by resignation"]

1. d4 {[%clk 0:03:00.9]} 1... Nf6 {[%clk 0:02:59.2]} 2. c4 {[%clk 0:02:59.7]}
2... e6 {[%clk 0:02:59.4]} 3. Nf3 {[%clk 0:02:59.5]} 3... b6 {[%clk 0:02:59.6]}
4. g3 {[%clk 0:02:58.8]} 4... Ba6 {[%clk 0:03:00]} 5. Qc2 {[%clk 0:02:56.5]}
5... Bb7 {[%clk 0:03:00.1]} 6. Bg2 {[%clk 0:02:56.6]} 6... c5 {[%clk 0:03:00.4]}
7. d5 {[%clk 0:02:57.1]} 7... exd5 {[%clk 0:03:01.3]} 8. cxd5 {[%clk 0:02:57.7]}
8... Nxd5 {[%clk 0:03:01.9]} 9. O-O {[%clk 0:02:57.7]} 9... Be7 {[%clk
0:03:01.8]} 10. Rd1 {[%clk 0:02:58.2]} 10... Qc8 {[%clk 0:03:02.1]} 11. a3
{[%clk 0:02:22.4]} 11... Nf6 {[%clk 0:03:00.5]} 12. Bg5 {[%clk 0:02:09.3]} 12...
O-O {[%clk 0:02:32.2]} 13. Nc3 {[%clk 0:02:07.1]} 13... Re8 {[%clk 0:02:15]} 14.
Rd2 {[%clk 0:01:59.9]} 14... h6 {[%clk 0:01:57.7]} 15. Bxf6 {[%clk 0:01:57.6]}
15... Bxf6 {[%clk 0:01:58.6]} 16. Nd5 {[%clk 0:01:57.1]} 16... Bxd5 {[%clk
0:01:58]} 17. Rxd5 {[%clk 0:01:58]} 17... Nc6 {[%clk 0:01:57.5]} 18. e3 {[%clk
0:01:50.7]} 18... Qc7 {[%clk 0:01:51.6]} 19. Rad1 {[%clk 0:01:49.7]} 19... Rad8
{[%clk 0:01:51.4]} 20. Qd2 {[%clk 0:01:21.8]} 20... c4 {[%clk 0:01:35.4]} 21.
Qc2 {[%clk 0:01:15]} 21... Ne7 {[%clk 0:01:16.5]} 22. Rd6 {[%clk 0:01:15]} 22...
b5 {[%clk 0:01:16.1]} 23. Bh3 {[%clk 0:01:04]} 23... Qb7 {[%clk 0:01:15.6]} 24.
Kg2 {[%clk 0:00:55]} 24... Ng6 {[%clk 0:01:04.8]} 25. Bf5 {[%clk 0:00:29]} 25...
Ne5 {[%clk 0:01:04.4]} 26. Be4 {[%clk 0:00:28.9]} 26... Qc7 {[%clk 0:00:57.6]}
27. R6d5 {[%clk 0:00:18.7]} 27... Nxf3 {[%clk 0:00:56.2]} 28. Bxf3 {[%clk
0:00:19.2]} 28... a6 {[%clk 0:00:49.6]} 29. R1d2 {[%clk 0:00:17.7]} 29... d6
{[%clk 0:00:48.5]} 30. h4 {[%clk 0:00:17]} 30... Re5 {[%clk 0:00:47.8]} 31. h5
{[%clk 0:00:16.9]} 31... a5 {[%clk 0:00:37.7]} 32. Qd1 {[%clk 0:00:12.1]} 32...
Rxd5 {[%clk 0:00:36.1]} 33. Bxd5 {[%clk 0:00:12.7]} 33... b4 {[%clk 0:00:35.1]}
34. axb4 {[%clk 0:00:12.8]} 34... axb4 {[%clk 0:00:35.8]} 35. Qg4 {[%clk
0:00:11.4]} 35... c3 {[%clk 0:00:33.6]} 36. bxc3 {[%clk 0:00:11.7]} 36... Qxc3
{[%clk 0:00:23.9]} 37. Ra2 {[%clk 0:00:07.1]} 37... b3 {[%clk 0:00:19]} 38. Ra7
{[%clk 0:00:05.8]} 38... Qc5 {[%clk 0:00:11.9]} 39. Bxf7+ {[%clk 0:00:04.9]}
39... Kf8 {[%clk 0:00:11.8]} 40. Rb7 {[%clk 0:00:04.8]} 40... Qc6+ {[%clk
0:00:11.8]} 41. Qf3 {[%clk 0:00:05.1]} 41... Qxf3+ {[%clk 0:00:11.4]} 42. Kxf3
{[%clk 0:00:06]} 42... b2 {[%clk 0:00:10.7]} 43. Bg6 {[%clk 0:00:05.5]} 43...
Rd7 {[%clk 0:00:08.3]} 44. Rxd7 {[%clk 0:00:04.8]} 1-0